bitfinex/quotes_ETHUSD_20250731
["timestamp","ask_amount","ask_price","bid_price","bid_amount"]
[1753922880300,0.01892179,3854.3,3854.2,3.14457215]
[1753922880542,0.01892179,3854.3,3854.2,0.9502]
[1753922880702,0.01892179,3854.3,3854.2,4.12071787]
[1753922881241,0.01892179,3854.3,3854.2,4.09477215]
[1753922881759,0.01892179,3854.3,3853.8,0.9502]
[1753922881919,0.01892179,3854.3,3853.9,0.55]
[1753922882304,0.01892179,3854.3,3854.1,0.55]
[1753922883147,0.01892179,3854.3,3853.8,0.55]
[1753922883334,0.01892179,3854.3,3853.4,0.4672]
[1753922883335,0.7636,3854.2,3853.4,0.4672]
[1753922883643,0.7636,3854.2,3853.6,0.55]
[1753922883807,0.7636,3854.2,3853.7,0.02594908]
[1753922884211,0.7636,3854.2,3853.6,0.55]
[1753922884607,0.7636,3854.2,3853.5,0.483]
[1753922884805,0.7636,3854.2,3853.6,0.55]
[1753922885238,0.7636,3854.2,3853.6,3.14496758]
[1753922885418,0.7636,3854.2,3853.6,0.55]
[1753922886119,0.7636,3854.2,3853.5,0.483]
[1753922886315,0.7636,3854.2,3853.6,2.59497612]
[1753922886818,0.7636,3854.2,3853.5,0.483]
[1753922887443,0.7636,3854.2,3853.6,3.06216139]
[1753922887754,0.7656,3854.2,3853.6,0.4672]
[1753922887916,0.7656,3854.2,3853.5,3.07803076]
[1753922888316,0.7656,3854.2,3853.5,0.483]
[1753922888514,0.7986,3854.0,3852.6,0.4672]
[1753922888870,1.05223915,3853.9,3852.8,0.483]
[1753922889018,0.84023915,3853.9,3853.0,2.59531876]
[1753922889220,0.7986,3854.0,3853.1,2.59530851]
[1753922889529,0.7986,3854.0,3853.3,2.59512546]
[1753922889852,0.7986,3854.0,3853.7,0.1296]
[1753922890153,0.002,3854.2,3853.8,0.9502]
[1753922890341,0.002,3854.2,3853.9,0.1296]
[1753922890548,0.002,3854.2,3854.1,0.1296]
[1753922892644,0.3348,3854.2,3853.1,0.483]
[1753922892855,0.3348,3854.2,3853.8,0.1296]
[1753922893038,0.1228,3854.2,3853.8,0.1296]
[1753922893222,0.002,3854.2,3853.8,0.1296]
[1753922894061,0.002,3854.2,3853.8,0.591]
[1753922894425,0.002,3854.2,3853.9,0.8894]
[1753922894625,0.002,3854.2,3854.1,0.1296]
[1753922896327,0.002,3854.2,3853.7,0.4614]
[1753922896531,0.002,3854.2,3854.0,0.1296]
[1753922897668,0.8113,3854.1,3854.0,0.1296]
[1753922900171,0.8113,3854.1,3854.0,0.591]
[1753922900365,0.002,3854.2,3854.0,0.591]
[1753922900366,0.002,3854.2,3854.0,1.019]
[1753922900576,0.002,3854.2,3854.1,0.4614]
[1753922900743,0.002,3854.2,3854.1,0.8894]
[1753922901767,0.002,3854.2,3854.0,0.1296]
[1753922901970,0.002,3854.2,3854.0,1.019]
[1753922902771,0.002,3854.2,3854.0,0.591]
[1753922904071,0.002,3854.2,3854.0,0.1296]
[1753922904438,0.002,3854.2,3854.0,0.591]
[1753922905358,0.002,3854.2,3854.0,1.019]
[1753922905548,0.002,3854.2,3854.1,0.8894]
[1753922906370,0.002,3854.2,3854.1,3.48403947]
[1753922906679,0.002,3854.2,3854.1,4.03403947]
[1753922907465,0.002,3854.2,3854.1,4.79953947]
[1753922908038,0.002,3854.2,3854.1,7.79953947]
[1753922913877,0.002,3854.2,3854.0,2.72429032]
[1753922914081,0.002,3854.2,3854.1,2.59463947]
[1753922914264,0.002,3854.2,3854.0,3.18569782]
[1753922914646,0.002,3854.2,3854.1,2.59463947]
[1753922914969,0.002,3854.2,3854.1,3.05603947]
[1753922915170,0.002,3854.2,3854.0,3.15229456]
[1753922915357,0.002,3854.2,3854.0,3.61369456]
[1753922915555,0.002,3854.2,3854.0,0.1296]
[1753922915757,0.83,3854.1,3854.0,0.1296]
[1753922916966,1.042,3854.1,3854.0,0.1296]
[1753922917368,1.042,3854.1,3853.9,0.001]
[1753922917598,0.9507,3854.1,3853.9,0.001]
[1753922917788,0.212,3854.0,3853.9,0.001]
[1753922917987,1.1156,3854.0,3853.9,0.001]
[1753922918153,2.09783133,3854.0,3853.9,0.001]
[1753922918689,1.76513133,3854.0,3853.9,0.001]
[1753922918889,0.7829,3854.0,3853.9,0.001]
[1753922919086,0.7829,3854.0,3853.9,0.1306]
[1753922921955,0.002,3854.2,3853.9,0.1306]
[1753922922286,0.002,3854.2,3853.9,0.592]
[1753922922653,0.002,3854.2,3853.9,1.02]
[1753922922846,0.002,3854.2,3854.0,0.4614]
[1753922923584,0.002,3854.2,3853.9,0.1306]
[1753922924464,0.002,3854.2,3853.9,0.6188]
[1753922925251,0.002,3854.2,3854.0,0.932]
[1753922925957,0.002,3854.2,3854.1,0.4882]
[1753922926183,0.002,3854.2,3854.1,1.0616]
[1753922926496,0.002,3854.2,3854.1,3.65623947]
[1753922927050,0.002,3854.2,3854.1,0.1296]
[1753922927271,0.002,3854.2,3854.1,0.6178]
[1753922928477,0.002,3854.2,3854.1,0.1296]
[1753922928785,0.002,3854.2,3854.1,1.0616]
[1753922929506,0.002,3854.2,3854.1,4.90903947]
[1753922932778,1e-08,3854.2,3854.1,4.90903947]
[1753922934287,1e-08,3854.2,3854.1,0.55]
[1753922934616,1e-08,3854.2,3854.1,3.52663947]
[1753922935221,1e-08,3854.2,3854.1,4.10258586]
[1753922935523,1e-08,3854.2,3854.1,4.07663947]
[1753922936816,1e-08,3854.2,3854.1,4.90193947]
[1753922937521,1e-08,3854.2,3854.1,4.07663947]
[1753922939521,1e-08,3854.2,3854.1,4.20623947]
[1753922940126,1e-08,3854.2,3854.1,3.65623947]
[1753922940326,1e-08,3854.2,3854.1,3.76243947]
[1753922940526,1e-08,3854.2,3854.1,2.72423947]
[1753922940753,1e-08,3854.2,3854.1,0.1296]
[1753922941020,0.81250001,3854.2,3854.1,2.72423947]
[1753922941592,0.81250001,3854.2,3854.1,0.1296]
[1753922942630,0.81250001,3854.2,3854.1,2.72423947]
[1753922943033,0.81250001,3854.2,3854.1,4.20623947]
[1753922943034,1e-08,3854.2,3854.1,4.20623947]
[1753922945146,0.76320001,3854.2,3854.1,0.1296]
[1753922945327,1e-08,3854.2,3854.1,0.1296]
[1753922945529,1e-08,3854.2,3854.1,3.65623947]
[1753922947428,1e-08,3854.2,3854.1,0.1296]
[1753922947832,1e-08,3854.2,3854.1,1.9089]
[1753922948036,1e-08,3854.2,3854.1,4.99173947]
[1753922950353,1e-08,3854.2,3854.1,8.01768586]
[1753922950642,1e-08,3854.2,3854.1,7.99173947]
[1753922952777,1e-08,3854.2,3854.1,7.44173947]
[1753922953132,1e-08,3854.2,3854.1,7.99173947]
[1753922953614,1e-08,3854.2,3854.1,2.72423947]
[1753922953818,1e-08,3854.2,3854.1,3.64033947]
[1753922954076,1e-08,3854.2,3854.1,4.19033947]
[1753922955758,1e-08,3854.2,3854.1,3.64033947]
[1753922956060,1e-08,3854.2,3854.1,0.5892]
[1753922956375,1e-08,3854.2,3854.1,2.72423947]
[1753922956671,1e-08,3854.2,3854.1,0.1296]
[1753922957168,1e-08,3854.2,3854.1,2.72423947]
[1753922957466,0.81100001,3854.2,3854.1,0.1296]
[1753922958171,1.02300001,3854.2,3854.1,0.1296]
[1753922958857,0.8181,3854.1,3853.9,0.001]
[1753922959032,0.33270001,3854.2,3853.9,0.001]
[1753922959033,0.9477,3854.0,3853.9,0.001]
[1753922959236,1.1508,3854.0,3853.9,0.001]
[1753922959566,0.9388,3854.0,3853.9,0.001]
[1753922959766,1.1597,3854.0,3853.9,0.001]
[1753922959935,1.30027402,3854.0,3853.9,0.001]
[1753922960368,1.89787604,3854.0,3853.9,0.001]
[1753922963194,1.56517604,3854.0,3853.9,0.001]
[1753922963378,0.8181,3854.0,3853.9,0.001]
[1753922965920,1.0301,3854.0,3853.9,0.001]
[1753922966282,0.8181,3854.0,3853.9,0.001]
[1753922966487,1e-08,3854.2,3853.9,0.1306]
[1753922966798,0.01987403,3854.2,3853.9,0.1306]
[1753922966969,0.7645,3854.0,3853.9,0.001]
[1753922969398,1.32839864,3854.0,3853.9,0.001]
[1753922969607,0.7645,3854.0,3853.9,0.001]
[1753922970615,0.9765,3854.0,3853.9,0.001]
[1753922971182,6.08236457,3854.0,3853.9,0.001]
[1753922973128,38.67707136,3854.0,3853.9,0.001]
[1753922973322,36.08236457,3854.0,3853.9,0.001]
[1753922973519,8.65262918,3854.0,3853.9,0.001]
[1753922973717,6.08236457,3854.0,3853.9,0.001]
[1753922973918,5.96166457,3854.0,3853.9,0.001]
[1753922974294,6.08236457,3854.0,3853.9,0.001]
[1753922976294,8.67707136,3854.0,3853.9,0.001]
[1753922976804,6.08236457,3854.0,3853.9,0.001]
[1753922977005,7.25737466,3854.0,3853.9,0.001]
[1753922977730,9.85208145,3854.0,3853.9,0.001]
[1753922977898,2.28111009,3854.0,3853.9,0.001]
[1753922978099,1.2268,3854.0,3853.9,0.001]
[1753922978402,3.82150679,3854.0,3853.9,0.001]
[1753922978652,3.84138081,3854.0,3853.9,0.001]
[1753922978934,33.84138081,3854.0,3853.9,0.001]
[1753922979146,3.82150679,3854.0,3853.9,0.001]
[1753922979459,2.94505928,3854.0,3853.9,0.001]
[1753922979614,2.02315928,3854.0,3853.9,0.001]
[1753922979806,2.23515928,3854.0,3853.9,0.001]
[1753922980006,2.02315928,3854.0,3853.9,0.001]
[1753922980216,0.8941,3854.0,3853.9,0.001]
[1753922980420,0.8941,3854.0,3853.9,0.9171]
[1753922980820,0.8941,3854.0,3853.9,0.4606]
[1753922981347,0.8941,3854.0,3853.9,0.001]
[1753922983314,5.76953859,3854.0,3853.9,0.001]
[1753922983522,6.58796397,3854.0,3853.9,0.001]
[1753922985765,6.79996397,3854.0,3853.9,0.001]
[1753922985974,9.39467076,3854.0,3853.9,0.001]
[1753922986259,7.04273537,3854.0,3853.9,0.001]
[1753922986432,9.42544216,3854.0,3853.9,0.001]
[1753922986631,1.9751708,3854.0,3853.9,0.001]
[1753922986820,0.8941,3854.0,3853.9,0.001]
[1753922987617,0.8941,3854.0,3853.9,0.9474]
[1753922987918,1e-08,3854.2,3853.9,0.9474]
[1753922988218,1e-08,3854.2,3854.1,0.1296]
[1753922988419,1e-08,3854.2,3854.1,2.72423947]
[1753922988627,1e-08,3854.2,3854.1,3.67063947]
[1753922988827,1e-08,3854.2,3854.1,1.076]
[1753922989047,1e-08,3854.2,3854.1,3.67063947]
[1753922989258,1e-08,3854.2,3854.1,3.69658586]
[1753922989458,1e-08,3854.2,3854.1,3.67063947]
[1753922989823,1e-08,3854.2,3854.1,3.69658586]
[1753922990155,1e-08,3854.2,3854.1,4.51088586]
[1753922990355,1e-08,3854.2,3854.1,4.48493947]
[1753922990755,1e-08,3854.2,3854.1,0.6284]
[1753922990955,1e-08,3854.2,3854.1,0.9464]
[1753922991163,1e-08,3854.2,3854.1,4.38868586]
[1753922991363,1e-08,3854.2,3854.1,4.51828586]
[1753922991660,1e-08,3854.2,3854.1,4.49233947]
[1753922992830,1e-08,3854.2,3854.1,1.8977]
[1753922993163,1e-08,3854.2,3854.1,1.076]
[1753922993325,1e-08,3854.2,3853.9,0.001]
[1753922993659,1e-08,3854.2,3853.9,1.077]
[1753922994262,1e-08,3854.2,3853.9,0.001]
[1753922994474,0.97874679,3854.1,3853.9,0.001]
[1753922995863,0.7521,3854.0,3853.9,0.001]
[1753922997273,0.7521,3854.0,3853.9,0.4998]
[1753922997443,0.1296,3854.1,3853.9,0.9474]
[1753922997837,1e-08,3854.2,3854.0,0.9464]
[1753922998145,0.12960001,3854.2,3854.0,0.9464]
[1753922998340,0.12960001,3854.2,3853.9,0.001]
[1753922998535,0.12960001,3854.2,3854.0,0.9464]
[1753922999364,0.01987402,3854.1,3853.9,0.001]
[1753922999740,0.01987402,3854.1,3853.9,0.4998]
[1753923000070,0.7505,3854.0,3853.9,0.001]
[1753923000244,1.44259864,3854.0,3853.9,0.001]
[1753923001241,0.1296,3854.0,3853.9,0.9474]
[1753923001773,0.1296,3854.1,3853.9,0.9474]
[1753923001961,0.1296,3854.1,3854.0,0.9464]
[1753923002939,0.12960001,3854.2,3854.0,0.9464]
[1753923003133,0.12960001,3854.2,3854.1,0.4988]
[1753923003775,0.12960001,3854.2,3854.1,0.9464]
[1753923003977,0.91470001,3854.2,3853.9,0.001]
[1753923004150,0.1296,3854.0,3853.9,0.001]
[1753923012099,0.14947402,3854.0,3853.9,0.001]
[1753923013464,0.1296,3854.0,3853.9,0.001]
[1753923014782,0.1296,3854.0,3853.9,0.4905]
[1753923015201,0.1296,3854.0,3853.9,0.9476]
[1753923015694,0.70851864,3854.0,3853.9,0.9476]
[1753923015884,0.70851864,3854.0,3853.9,0.4905]
[1753923016492,0.1296,3854.0,3853.9,0.9476]
[1753923019206,0.1296,3854.0,3853.9,0.001]
[1753923022107,0.37272289,3854.0,3853.9,0.001]
[1753923022422,0.1296,3854.0,3853.9,0.001]
[1753923022577,0.37272289,3854.0,3853.9,0.001]
[1753923022895,3.86339653,3854.0,3853.9,0.001]
[1753923023208,1.48068974,3854.0,3853.9,0.001]
[1753923023408,6.12425431,3854.0,3853.9,0.001]
[1753923023729,8.7189611,3854.0,3853.9,0.001]
[1753923023925,9.8650611,3854.0,3853.9,0.001]
[1753923024127,9.7443611,3854.0,3853.9,0.001]
[1753923025275,9.74444055,3854.0,3853.9,0.001]
[1753923025579,9.86514055,3854.0,3853.9,0.001]
[1753923026887,6.93773376,3854.0,3853.9,0.001]
[1753923027087,2.08216919,3854.0,3853.9,0.001]
[1753923027314,5.02945,3854.0,3853.9,0.001]
[1753923027620,5.00957598,3854.0,3853.9,0.001]
[1753923028104,9.86514055,3854.0,3853.9,0.001]
[1753923028414,42.86514055,3854.0,3853.9,0.001]
[1753923029220,42.86514055,3854.0,3853.5,0.001]
[1753923029221,32.59497612,3853.6,3853.5,0.001]
[1753923029379,38.62014303,3853.6,3853.5,0.001]
[1753923029587,38.95284303,3853.6,3853.5,0.001]
[1753923029914,38.70964069,3853.6,3853.5,0.001]
[1753923030813,8.70964069,3853.6,3853.5,0.001]
[1753923031016,40.39711989,3853.6,3853.5,0.001]
[1753923031218,40.64023054,3853.6,3853.5,0.001]
[1753923031537,41.19022907,3853.6,3853.5,0.001]
[1753923031719,8.20228163,3852.5,3852.4,0.001]
[1753923032015,6.81595104,3852.5,3852.1,0.04]
[1753923032180,6.68635104,3852.5,3852.2,0.9466]
[1753923032380,0.1296,3852.3,3852.2,0.9466]
[1753923034691,0.1296,3852.3,3852.1,0.04]
[1753923034891,5.68323859,3852.2,3852.1,0.04]
[1753923035099,11.47128378,3852.2,3852.1,0.04]
[1753923035407,41.83446935,3852.2,3852.1,0.04]
[1753923035725,42.38446935,3852.2,3852.1,0.04]
[1753923036229,42.26376935,3852.2,3852.1,0.04]
[1753923036404,44.83403396,3852.2,3852.1,0.04]
[1753923036934,45.03197516,3852.2,3852.1,0.04]
[1753923037129,45.15267516,3852.2,3852.1,0.04]
[1753923037637,45.03197516,3852.2,3852.1,0.04]
[1753923037996,45.15267516,3852.2,3852.1,0.04]
[1753923039012,45.03197516,3852.2,3852.1,0.04]
[1753923040542,45.03197516,3852.2,3852.1,0.041]
[1753923041243,45.03139097,3852.2,3852.1,0.041]
[1753923041401,15.03139097,3852.2,3852.1,0.041]
[1753923041735,45.03139097,3852.2,3852.1,0.041]
[1753923042153,30.55,3852.0,3850.1,0.04]
[1753923042352,3.0,3852.1,3850.9,0.4895]
[1753923042353,0.8014,3851.3,3850.9,0.4895]
[1753923042553,0.1296,3851.2,3850.9,0.4895]
[1753923042760,0.96789648,3851.2,3850.9,0.4895]
[1753923043455,3.56448974,3851.2,3850.3,0.8288]
[1753923043658,36.58436376,3851.2,3850.7,0.4854]
[1753923043814,2.59678031,3851.0,3850.5,0.9278]
[1753923044014,4.85556457,3850.8,3850.5,0.9278]
[1753923044227,0.1296,3850.6,3850.5,0.9278]
[1753923044432,0.1296,3850.6,3850.1,0.4824]
[1753923044632,3.37873933,3850.5,3850.2,0.4854]
[1753923044836,6.37873933,3850.5,3850.2,0.4854]
[1753923045031,6.35886531,3850.5,3850.1,0.4824]
[1753923045265,0.7677,3850.1,3849.4,0.001]
[1753923045571,5.59747006,3849.9,3849.6,0.4854]
[1753923045718,5.72707006,3849.9,3849.6,0.4854]
[1753923046347,2.59766265,3849.7,3849.4,0.001]
[1753923046532,0.83247464,3849.6,3849.4,0.001]
[1753923046727,0.14947402,3849.5,3849.4,0.001]
[1753923046956,2.74721398,3849.5,3849.4,0.001]
[1753923047257,32.74721398,3849.5,3849.4,0.001]
[1753923047449,33.52823996,3849.5,3849.4,0.001]
[1753923047882,30.9305,3849.5,3849.4,0.001]
[1753923048167,3.50076461,3849.5,3849.4,0.001]
[1753923048348,0.9305,3849.5,3849.4,0.4434]
[1753923049056,0.9305,3849.5,3848.9,0.4434]
[1753923049395,0.1296,3849.3,3848.9,0.001]
[1753923049554,0.1296,3849.3,3849.2,0.9278]
[1753923049940,2.59807742,3849.0,3848.9,0.001]
[1753923050134,2.57026461,3849.0,3848.9,0.4864]
[1753923050341,2.72767742,3849.0,3848.9,0.001]
[1753923050535,32.72767742,3849.0,3848.9,0.001]
[1753923050783,35.72767742,3849.0,3848.9,0.001]
[1753923051085,36.95547742,3849.0,3848.9,0.001]
[1753923051438,36.48597742,3849.0,3848.9,0.001]
[1753923051738,39.05624203,3849.0,3848.9,0.001]
[1753923052166,2.59827993,3848.7,3848.4,0.4404]
[1753923052373,7.45404408,3848.5,3848.2,0.001]
[1753923052640,3.41745,3848.3,3848.2,0.001]
[1753923052841,4.81755715,3848.3,3848.2,0.001]
[1753923053580,4.81755715,3848.3,3848.2,0.4864]
[1753923053753,3.99865715,3848.3,3848.2,0.4864]
[1753923054151,3.99865715,3848.3,3848.2,0.9288]
[1753923054357,3.99865715,3848.3,3848.2,0.4434]
[1753923054759,3.99865715,3848.3,3848.2,0.001]
[1753923055156,3.99865715,3848.3,3848.1,0.041]
[1753923055157,5.59861753,3848.2,3848.1,0.041]
[1753923055361,12.34202603,3848.2,3848.1,0.041]
[1753923055742,42.34202603,3848.2,3848.1,0.041]
[1753923056384,3.0,3848.0,3847.6,0.001]
[1753923056680,2.59882013,3847.9,3847.8,0.4424]
[1753923056888,8.29868474,3847.9,3847.8,0.4424]
[1753923057091,13.15424931,3847.9,3847.8,0.4424]
[1753923057290,3.0,3847.8,3847.6,0.001]
[1753923057499,5.72855522,3847.7,3847.6,0.001]
[1753923058193,3.956,3847.7,3847.6,0.001]
[1753923058407,8.26946136,3848.9,3847.6,0.7925]
[1753923058581,30.0,3848.8,3847.6,0.7925]
[1753923058757,5.57026461,3848.7,3847.9,0.7915]
[1753923058954,3.14202747,3848.9,3847.9,0.7915]
[1753923059202,0.7707,3849.8,3848.4,0.55]
[1753923059368,2.59780745,3849.4,3848.5,0.7508]
[1753923059568,0.7453372,3849.3,3848.5,0.7508]
[1753923059757,0.7453372,3849.3,3848.6,0.9278]
[1753923059963,0.7453372,3849.3,3848.7,0.9278]
[1753923060163,0.7453372,3849.3,3848.8,0.9278]
[1753923060396,0.7453372,3849.3,3848.9,0.9278]
[1753923060695,0.7453372,3849.3,3849.1,0.7941]
[1753923060901,3.0,3849.4,3848.5,0.7941]
[1753923061213,30.0,3848.5,3848.3,0.4424]
[1753923061362,4.85556457,3848.6,3848.2,0.4854]
[1753923061563,8.19930234,3848.6,3848.4,0.4424]
[1753923061777,5.60095173,3848.6,3848.2,0.4424]
[1753923061974,5.60095173,3848.6,3848.3,0.4424]
[1753923062427,2.59848248,3848.4,3848.3,0.4424]
[1753923062765,2.59841593,3848.5,3848.3,0.4424]
[1753923062998,1.14088031,3848.5,3847.6,0.551]
[1753923063197,3.4695,3849.0,3848.0,0.4424]
[1753923063198,2.59868506,3848.1,3848.0,0.4424]
[1753923063463,2.5986821,3848.2,3848.0,0.4424]
[1753923063821,0.01987402,3848.3,3847.8,0.4854]
[1753923064106,2.59856276,3848.3,3848.1,0.4424]
[1753923064286,2.59856276,3848.3,3847.9,0.4854]
[1753923064287,2.59862719,3848.2,3847.9,0.4854]
[1753923064488,2.59834745,3848.6,3847.9,0.4854]
[1753923064806,2.59841496,3848.5,3847.9,0.9278]
[1753923064963,2.59841496,3848.5,3848.0,0.4424]
[1753923065298,2.59855327,3848.3,3848.0,0.4424]
[1753923065487,2.59855327,3848.3,3848.1,0.9278]
[1753923065862,2.59861753,3848.2,3848.1,0.4424]
[1753923066062,0.01987402,3848.3,3848.1,0.4424]
[1753923066365,2.59861753,3848.2,3848.1,0.4424]
[1753923066563,2.59861753,3848.2,3847.8,0.9278]
[1753923066792,0.01987402,3848.1,3847.6,0.001]
[1753923067000,2.59895522,3847.7,3847.6,0.001]
[1753923067305,3.19781275,3847.7,3847.6,0.001]
[1753923067463,3.66731275,3847.7,3847.6,0.001]
[1753923067963,6.66731275,3847.7,3847.6,0.001]
[1753923068360,6.79691275,3847.7,3847.6,0.001]
[1753923068613,37.23091275,3847.7,3847.6,0.001]
[1753923068815,38.01241275,3847.7,3847.6,0.001]
[1753923069000,38.25395798,3847.7,3847.6,0.001]
[1753923069307,2.59929299,3847.2,3847.1,0.041]
[1753923069511,33.13901629,3847.2,3847.1,0.041]
[1753923069679,33.13901629,3847.2,3845.9,0.1304]
[1753923069680,31.41344928,3847.2,3845.9,0.1304]
[1753923070007,0.1296,3846.4,3846.2,0.4424]
[1753923070212,2.59983361,3846.4,3846.3,0.9278]
[1753923070386,2.59976937,3846.5,3846.3,0.9278]
[1753923070705,0.1296,3846.4,3846.3,0.4854]
[1753923071074,0.1296,3846.4,3846.1,0.04]
[1753923071426,0.1296,3846.2,3846.1,0.04]
[1753923071566,2.7295688,3846.2,3846.1,0.04]
[1753923071764,3.69098049,3846.2,3846.1,0.04]
[1753923071976,6.69098049,3846.2,3846.1,0.04]
[1753923072173,4.09101169,3846.2,3846.1,0.4824]
[1753923072474,3.1296,3846.2,3846.1,0.4824]
[1753923073295,5.7295688,3846.2,3846.1,0.04]
[1753923073469,6.5406688,3846.2,3846.1,0.04]
[1753923073673,37.0033688,3846.2,3846.1,0.04]
[1753923074099,2.10002443,3846.2,3845.4,0.4356]
[1753923074410,0.1304,3845.5,3845.2,0.7973]
[1753923074617,3.0,3845.7,3845.1,0.04]
[1753923074815,0.1304,3845.3,3845.1,0.04]
[1753923075014,2.60064495,3845.2,3845.1,0.04]
[1753923075328,3.73871879,3845.2,3845.1,0.04]
[1753923075491,32.60071259,3845.1,3845.0,87.28573326]
[1753923075694,36.64841259,3845.1,3845.0,77.5398213]
[1753923075891,32.60105082,3844.6,3844.5,1.47673394]
[1753923076094,40.93539679,3844.6,3844.5,1.47673394]
[1753923076282,44.39809679,3844.6,3844.5,1.47673394]
[1753923076637,34.3933,3844.6,3844.5,1.47673394]
[1753923076793,5.70066461,3844.6,3844.5,1.47673394]
[1753923076991,3.1304,3844.6,3844.5,1.47673394]
[1753923077575,36.19415082,3844.6,3844.5,1.47673394]
[1753923077817,33.5931,3844.6,3844.5,1.47673394]
[1753923078385,36.19415082,3844.6,3844.5,1.47673394]
[1753923078882,36.43563385,3844.6,3844.5,1.47673394]
[1753923079082,39.21901543,3844.6,3844.5,1.47673394]
[1753923079287,39.21901543,3844.6,3844.1,1.57014374]
[1753923079288,35.60132147,3844.2,3844.1,0.5888039]
[1753923079500,43.00506744,3844.2,3844.1,0.5888039]
[1753923079699,43.70912359,3844.2,3844.1,0.5888039]
[1753923079900,46.2793882,3844.2,3844.1,0.5888039]
[1753923080635,2.60160878,3843.8,3843.6,1.58355353]
[1753923080807,5.62153387,3843.7,3843.6,1.58355353]
[1753923081007,36.06435985,3843.7,3843.6,1.58355353]
[1753923081226,8.17192446,3843.7,3843.6,1.58355353]
[1753923081431,35.60165985,3843.7,3843.6,1.58355353]
[1753923081634,44.24510582,3843.7,3843.6,1.58355353]
[1753923081839,44.69970582,3843.7,3843.6,1.58355353]
[1753923082333,44.48610339,3843.7,3843.6,1.58355353]
[1753923082639,3.777,3843.7,3843.6,1.58355353]
[1753923082939,7.06278994,3843.7,3843.6,1.58355353]
[1753923083113,37.06278994,3843.7,3843.6,1.58355353]
[1753923083510,45.38383591,3843.7,3843.6,1.58355353]
[1753923083894,45.62464708,3843.7,3843.6,1.58355353]
[1753923084099,45.17004708,3843.7,3843.6,1.58355353]
[1753923084321,45.6244382,3843.7,3843.6,1.58355353]
[1753923084638,37.06278994,3843.7,3843.6,1.58355353]
[1753923084813,40.0056766,3843.3,3843.2,1.63796333]
[1753923085421,40.4683766,3843.3,3843.2,1.63796333]
[1753923086137,40.9229766,3843.3,3843.2,1.63796333]
[1753923086437,40.9229766,3843.3,3842.7,1.69037312]
[1753923086438,35.60226917,3842.8,3842.7,1.69037312]
[1753923086640,38.17253378,3842.8,3842.7,1.69037312]
[1753923086842,38.63523378,3842.8,3842.7,1.69037312]
[1753923087353,2.60260781,3842.3,3842.2,1.74378291]
[1753923087542,35.60260781,3842.3,3842.2,1.74378291]
[1753923087724,36.06530781,3842.3,3842.2,1.74378291]
[1753923087931,36.51846118,3842.3,3842.2,1.74378291]
[1753923088424,37.30956118,3842.3,3842.2,1.74378291]
[1753923088833,37.76416118,3842.3,3842.2,1.74378291]
[1753923089255,37.89456118,3842.3,3842.2,1.74378291]
[1753923089564,35.60267555,3842.2,3842.1,0.041]
[1753923089853,38.63564016,3842.2,3842.1,0.041]
[1753923090072,8.63564016,3842.2,3842.1,0.041]
[1753923090377,38.17294016,3842.2,3842.1,0.041]
[1753923090514,32.57026461,3842.2,3842.1,0.041]
[1753923090718,0.1304,3842.3,3842.2,0.7864]
[1753923090953,0.1304,3842.3,3842.2,1.692]
[1753923094965,0.1304,3842.3,3842.2,0.4356]
[1753923095429,0.15027402,3842.3,3842.2,0.9056]
[1753923095625,0.1304,3842.3,3842.2,0.9056]
[1753923095949,0.4454274,3842.3,3842.1,0.041]
[1753923096130,3.0,3842.2,3842.1,0.041]
[1753923096461,5.62254957,3842.2,3842.1,0.041]
[1753923096670,36.06537555,3842.2,3842.1,0.041]
[1753923097147,0.1304,3842.3,3842.1,0.4766]
[1753923097350,0.1304,3842.3,3842.1,1.6997]
[1753923097865,0.1304,3842.3,3842.2,0.9056]
[1753923098328,33.0,3843.3,3842.2,0.9056]
[1753923098630,1.2365,3843.8,3842.3,0.9056]
[1753923098779,0.1304,3842.6,3842.1,0.7941]
[1753923098973,0.1304,3842.6,3842.4,0.9056]
[1753923099283,0.1304,3842.6,3842.1,0.7941]
[1753923099284,4.2365,3843.8,3842.5,0.9056]
[1753923099507,0.1304,3842.7,3842.6,0.9056]
[1753923100806,0.15027402,3842.7,3842.2,0.4356]
[1753923101016,0.1304,3842.4,3842.3,0.4356]
[1753923101176,0.1304,3842.4,3842.3,0.9056]
[1753923102512,0.1304,3842.4,3842.3,0.4356]
[1753923102713,0.1304,3842.4,3842.1,0.7941]
[1753923102933,3.0,3842.8,3842.1,0.7941]
[1753923102934,0.1304,3842.2,3842.1,1.6997]
[1753923103098,0.1304,3842.2,3842.1,1.2641]
[1753923103718,0.1304,3842.2,3842.1,1.7388]
[1753923103915,0.1304,3842.2,3842.1,0.041]
[1753923104117,0.37295134,3842.2,3842.1,1.1647]
[1753923104319,0.1304,3842.2,3842.1,1.1647]
[1753923104906,5.42199958,3843.9,3842.3,0.55]
[1753923105109,13.43210543,3844.3,3842.7,0.7539]
[1753923105110,0.1304,3843.3,3842.7,0.7539]
[1753923105312,0.24248732,3843.2,3842.8,1.2541]
[1753923105623,0.24248732,3843.1,3842.9,1.1237]
[1753923105933,0.24248732,3843.0,3842.8,0.1304]
[1753923106093,0.1304,3843.3,3842.8,0.12513323]
[1753923106296,0.24288577,3843.2,3842.9,1.1237]
[1753923106491,0.24288577,3843.2,3842.8,0.12513323]
[1753923106733,0.1304,3843.3,3843.0,1.1237]
[1753923107036,0.1304,3843.4,3843.1,1.1237]
[1753923107239,0.19271918,3844.2,3843.3,0.55]
[1753923107422,0.1304,3843.9,3843.4,1.2541]